bitfinex-derivatives/quotes_SOLF0:USTF0_20251109
["timestamp","ask_amount","ask_price","bid_price","bid_amount"]
[1762654931222,2.04,157.75,157.72,3.21]
[1762654931814,2.08738218,157.75,157.72,3.25623211]
[1762654933514,0.04738218,157.75,157.72,8.96433211]
[1762654933714,0.04738218,157.75,157.73,3.21]
[1762654942721,0.04738218,157.75,157.73,8.9177]
[1762654942923,0.04738218,157.75,157.74,3.21]
[1762654951230,2.08738218,157.75,157.73,3.21]
[1762654952127,2.08738218,157.75,157.73,8.9177]
[1762654956034,0.04738218,157.75,157.74,2.9]
[1762654958845,7.7251,157.81,157.76,2.9]
[1762654959141,2.02,157.8,157.76,2.9]
[1762654959837,2.06632635,157.8,157.76,2.94152024]
[1762654960137,2.06632635,157.8,157.77,2.9]
[1762654960138,0.04632635,157.8,157.77,2.9]
[1762654961642,0.04632635,157.8,157.79,2.9]
[1762654963840,5.7036,157.85,157.81,2.9]
[1762654964047,6.62342436,157.87,157.81,2.9]
[1762654964247,2.02,157.87,157.81,2.9]
[1762654964944,7.723,157.87,157.83,3.08]
[1762654965536,2.04,157.86,157.83,3.08]
[1762654966741,7.743,157.87,157.83,3.08]
[1762654967345,2.04,157.87,157.83,3.08]
[1762654967942,2.04,157.87,157.84,3.08]
[1762654968148,2.04,157.88,157.84,3.08]
[1762654968949,2.04,157.88,157.85,3.08]
[1762654971947,2.04,157.9,157.85,3.08]
[1762654972241,2.04,157.9,157.86,3.12232925]
[1762654973851,4.59272562,157.95,157.86,3.12232925]
[1762654973852,2.04,157.94,157.87,3.08]
[1762654974053,2.04,157.94,157.89,3.12185616]
[1762654975045,2.04,157.92,157.89,3.12185616]
[1762654978760,2.04,157.91,157.89,3.12185616]
[1762654980053,7.7414,157.91,157.89,3.12185616]
[1762654980254,2.04,157.9,157.89,0.04185616]
[1762654982858,5.7014,157.91,157.89,2.96185616]
[1762654983057,9.43826638,157.93,157.89,2.96185616]
[1762654983949,2.04,157.97,157.89,2.96185616]
[1762654984146,2.04,157.97,157.92,2.92]
[1762654984347,2.04,157.97,157.93,2.96607507]
[1762654984949,2.04,157.96,157.93,2.96607507]
[1762654987754,2.04,157.95,157.93,0.04607507]
[1762654988055,3.73746638,157.95,157.93,0.04607507]
[1762654988255,2.04,157.94,157.93,0.04607507]
[1762654989553,2.04,157.96,157.93,2.96607507]
[1762654990859,2.04,157.96,157.93,0.04607507]
[1762654991060,2.04,157.94,157.93,0.04607507]
[1762654991561,3.73746638,157.94,157.93,0.04607507]
[1762654993458,2.04,157.91,157.87,2.92]
[1762654993764,2.04,157.9,157.84,2.92]
[1762654994457,1.69746638,157.91,157.85,0.04237464]
[1762654994458,2.04,157.88,157.85,0.04237464]
[1762654994761,2.04,157.88,157.85,2.96237464]
[1762654996262,0.04223004,157.89,157.85,2.96237464]
[1762654997666,0.04223004,157.89,157.86,2.92]
[1762654998465,2.08223004,157.89,157.86,2.92]
[1762654999964,7.78443004,157.89,157.86,2.92]
[1762655000559,5.74443004,157.89,157.86,2.92]
[1762655004668,0.04223004,157.89,157.88,2.92]
[1762655004869,2.04,157.95,157.88,2.92]
[1762655005559,5.7003,157.94,157.88,2.92]
[1762655005764,7.7403,157.94,157.9,2.92]
[1762655006570,2.04,157.93,157.89,0.04467775]
[1762655006776,2.04,157.93,157.89,2.96467775]
[1762655007274,7.741,157.92,157.89,2.96467775]
[1762655007876,2.04,157.92,157.89,2.96467775]
[1762655009972,5.7003,157.94,157.89,2.96467775]
[1762655010177,5.7003,157.94,157.91,2.92]
[1762655010477,7.7403,157.94,157.91,2.92]
[1762655013174,2.04,157.95,157.91,2.92]
[1762655013365,2.04,157.95,157.91,2.96574902]
[1762655014072,7.7399,157.95,157.91,2.96574902]
[1762655017879,7.7403,157.94,157.91,2.96574902]
[1762655020978,2.04,157.94,157.91,2.96574902]
[1762655022780,7.7403,157.94,157.91,2.96574902]
[1762655024880,2.04,157.92,157.91,0.04574902]
[1762655036790,2.04,157.89,157.83,3.05]
[1762655037781,2.08800737,157.88,157.85,3.05]
[1762655037985,7.79040737,157.88,157.85,3.09279077]
[1762655039388,2.04,157.87,157.85,3.09279077]
[1762655040793,0.04800737,157.88,157.85,3.09279077]
[1762655041098,2.08800737,157.88,157.85,3.09279077]
[1762655041593,0.04800737,157.88,157.85,3.09279077]
[1762655042502,0.04800737,157.88,157.87,3.03]
[1762655044002,7.7408,157.93,157.89,3.03]
[1762655044902,7.7408,157.93,157.89,3.07492705]
[1762655045091,7.7408,157.93,157.9,3.03]
[1762655046405,2.04,157.93,157.9,3.03]
[1762655047105,5.7001,157.95,157.91,3.03]
[1762655047600,7.7401,157.95,157.91,3.03]
[1762655048004,7.7401,157.95,157.92,3.03]
[1762655048303,2.04,157.95,157.92,3.03]
[1762655052008,2.04,157.95,157.92,8.7309]
[1762655052409,2.04,157.95,157.93,3.03]
[1762655057408,7.7395,157.96,157.93,3.03]
[1762655059509,2.04,157.95,157.93,3.03]
[1762655063115,5.6995,157.96,157.93,3.03]
[1762655063305,2.04,158.0,157.93,3.03]
[1762655063510,2.04,158.0,157.89,2.64619644]
[1762655063511,2.04,158.0,157.96,3.03]
[1762655063814,2.04,157.99,157.96,3.03]
[1762655067219,2.04,157.99,157.97,3.03]
[1762655068016,2.04,158.01,157.98,3.03]
[1762655068218,2.04,158.01,157.98,3.07812544]
[1762655068720,2.04,158.03,157.99,3.03]
[1762655070011,2.04,158.03,158.0,3.03]
[1762655078915,2.03,158.02,157.98,2.97812544]
[1762655079728,7.7274,158.02,157.98,2.97812544]
[1762655082132,2.03,158.02,157.98,2.97812544]
[1762655082326,3.7218324,158.03,157.99,2.93]
[1762655082529,2.03,158.03,157.99,2.93]
[1762655083123,2.03,158.02,157.99,2.93]
[1762655088426,2.03,158.02,158.0,2.99]
[1762655088627,2.03,158.04,158.0,2.99]
[1762655090839,2.03,158.04,158.01,2.99]
[1762655093145,2.03,158.03,158.01,2.99]
[1762655101948,7.727,158.03,157.98,5.74682544]
[1762655102155,192.3902406,158.08,157.98,2.96812544]
[1762655102156,2.03,158.02,157.98,2.96812544]
[1762655102453,2.03,158.02,157.98,2.96551256]
[1762655105152,1.6918324,158.03,157.99,2.92]
[1762655105747,3.7218324,158.03,157.99,2.92]
[1762655105941,3.7218324,158.03,157.99,5.6983]
[1762655106146,3.7218324,158.03,158.0,2.92]
[1762655107859,3.7218324,158.03,157.98,2.96551256]
[1762655107860,2.03,158.02,157.98,2.96551256]
[1762655108058,3.7218324,158.01,157.98,2.96551256]
[1762655108256,3.7218324,158.01,157.98,2.96575619]
[1762655109151,9.4195324,158.01,157.98,2.96575619]
[1762655109460,2.03,158.0,157.98,2.96575619]
[1762655111550,2.03,158.03,157.98,2.96575619]
[1762655112755,2.03,158.03,158.0,2.92]
[1762655120862,2.03,158.02,157.98,2.96575619]
[1762655121063,2.03,158.01,157.98,2.96575619]
[1762655127873,7.7277,158.01,157.98,2.96575619]
[1762655128172,2.03,158.0,157.98,2.96575619]
[1762655128372,7.7277,158.01,157.98,2.96575619]
[1762655128565,2.03,158.01,157.98,2.96575619]
[1762655129971,7.7277,158.01,157.98,2.96575619]
[1762655131072,2.03,158.0,157.98,2.96575619]
[1762655131768,5.6977,158.01,157.98,2.96575619]
[1762655131965,7.7377,158.01,157.98,2.96575619]
[1762655132270,2.04,158.0,157.98,0.04575619]
[1762655132464,2.04,157.99,157.98,0.04575619]
[1762655133573,1.6918324,158.02,157.98,0.04575619]
[1762655133574,5.6976,158.02,157.98,3.13575619]
[1762655133776,2.04,158.04,157.99,3.09]
[1762655134571,5.697,158.03,158.0,3.09]
[1762655134770,2.04,158.04,158.0,3.09]
[1762655135977,2.04,158.03,158.0,3.09]
[1762655146800,7.737,158.03,158.0,3.09]
[1762655146994,2.04,158.02,158.0,3.09]
[1762655148701,7.737,158.03,158.0,3.09]
[1762655156502,7.737,158.03,157.98,0.04575619]
[1762655156503,2.04,158.01,157.98,0.04575619]
[1762655156806,2.04,158.01,157.98,3.21575619]
[1762655157807,2.04,158.0,157.98,3.21575619]
[1762655158412,2.04,158.03,157.98,3.21575619]
[1762655159611,2.04,158.0,157.98,3.21575619]
[1762655164716,7.7381,158.0,157.98,3.21575619]
[1762655164912,2.04,157.99,157.98,0.04575619]
[1762655165110,6.59890226,157.99,157.98,0.04575619]
[1762655165309,7.7381,158.0,157.98,3.24575619]
[1762655165805,2.04,157.99,157.98,3.24575619]
[1762655166114,2.04,157.99,157.98,0.04575619]
[1762655169223,7.7381,158.0,157.98,3.24575619]
[1762655169517,2.04,158.0,157.98,3.24575619]
[1762655171720,7.7381,158.0,157.98,3.24575619]
[1762655176622,2.04,158.0,157.98,3.24575619]
[1762655178823,7.7381,158.0,157.98,3.24575619]
[1762655186432,2.04,157.99,157.98,0.04575619]
[1762655187231,6.59494601,157.99,157.98,0.04575619]
[1762655187429,6.59461371,157.99,157.98,0.04575619]
[1762655188726,5.6992,157.97,157.92,3.2]
[1762655189034,2.04,157.96,157.92,3.2]
[1762655189723,2.04,157.96,157.92,3.24094881]
[1762655189928,2.08286439,157.96,157.92,3.24094881]
[1762655191333,7.78236439,157.96,157.92,3.24094881]
[1762655192634,2.04,157.95,157.92,3.24094881]
[1762655195140,5.74236439,157.96,157.92,3.24094881]
[1762655195141,7.78236439,157.96,157.92,3.24094881]
[1762655195340,2.04,157.95,157.92,3.24094881]
[1762655197441,7.7399,157.95,157.92,3.24094881]
[1762655197740,2.04,157.94,157.92,3.24094881]
[1762655199043,7.7402,157.94,157.92,3.24094881]
[1762655203744,2.04,157.93,157.92,0.04094881]
[1762655205959,7.7406,157.93,157.92,0.04094881]
[1762655207248,2.04,157.91,157.87,2.93]
[1762655208057,2.04,157.91,157.88,2.93]
[1762655208258,2.08058992,157.91,157.88,2.9773013]
[1762655210067,2.04,157.9,157.88,2.9773013]
[1762655210257,2.04,157.9,157.88,0.0473013]
[1762655211862,0.04058992,157.91,157.88,2.9773013]
[1762655212064,2.08058992,157.91,157.89,2.93]
[1762655220377,7.78188992,157.91,157.89,2.93]
[1762655221477,2.08058992,157.91,157.89,2.93]
[1762655223772,0.04058992,157.91,157.89,2.93]
[1762655224482,0.04058992,157.91,157.9,2.99]
[1762655231387,2.03,157.9,157.88,3.0373013]
[1762655231680,5.74188992,157.91,157.88,3.0373013]
[1762655231986,7.77188992,157.91,157.88,3.0373013]
[1762655232688,2.03,157.9,157.88,3.0373013]
[1762655236882,5.74188992,157.91,157.88,3.0373013]
[1762655237082,7.77188992,157.91,157.88,3.0373013]
[1762655240287,7.77188992,157.91,157.89,2.99]
[1762655241682,7.77188992,157.91,157.83,11.81192457]
[1762655241683,88.7165,157.86,157.7,15.68010573]
[1762655241886,1.69319896,157.74,157.65,2.99]
[1762655242080,1.69319896,157.72,157.65,2.99]
[1762655242281,5.81539141,157.71,157.65,2.99]
[1762655242481,1.69319896,157.69,157.62,2.99]
[1762655242679,1.69319896,157.67,157.66,0.04114462]
[1762655242879,12.39481766,157.67,157.59,2.99]
[1762655243183,12.39481766,157.67,157.57,31.70372825]
[1762655243184,1.69319896,157.65,157.57,30.6]
[1762655243386,11.52669141,157.64,157.57,30.6]
[1762655243595,1.69319896,157.63,157.57,30.6]
[1762655243890,0.04182,157.62,157.58,0.04296856]
[1762655244289,0.04182,157.62,157.58,3.03296856]
[1762655245888,0.04182,157.62,157.58,0.04296856]
[1762655246492,0.04182,157.62,157.58,3.03296856]
[1762655246685,0.04182,157.62,157.58,0.04296856]
[1762655247192,5.75392,157.62,157.58,0.04296856]
[1762655247492,0.04182,157.62,157.58,0.04296856]
[1762655247691,10.15969579,157.61,157.58,0.04296856]
[1762655247894,10.15082945,157.6,157.58,0.04296856]
[1762655248087,5.0942394,157.61,157.58,0.04296856]
[1762655248390,10.14241873,157.6,157.58,0.04296856]
[1762655248586,10.14241873,157.59,157.58,0.04296856]
[1762655248785,5.05690729,157.59,157.58,0.04296856]
[1762655251191,5.7128,157.6,157.58,0.04296856]
[1762655257294,5.04039053,157.59,157.58,0.04296856]
[1762655257495,5.7128,157.6,157.58,0.04296856]
[1762655259797,10.74457673,157.6,157.58,0.04296856]
[1762655260000,5.7128,157.6,157.58,0.04296856]
[1762655260195,10.74340665,157.6,157.58,0.04296856]
[1762655260397,5.7128,157.6,157.58,0.04296856]
[1762655261092,10.7427937,157.6,157.58,0.04296856]
[1762655261298,5.7128,157.6,157.58,0.04296856]
[1762655261496,10.7427937,157.6,157.58,0.04296856]
[1762655261702,5.7128,157.6,157.58,0.04296856]
[1762655261895,10.7427937,157.6,157.58,0.04296856]
[1762655262101,5.7128,157.6,157.58,0.04296856]
[1762655262401,10.7427937,157.6,157.58,0.04296856]
[1762655262599,5.7128,157.6,157.58,0.04296856]
[1762655262797,10.7427937,157.6,157.58,0.04296856]
[1762655263100,0.04182,157.62,157.58,0.04296856]
[1762655264203,5.7124,157.61,157.58,0.04296856]
[1762655264900,5.7127,157.6,157.58,0.04296856]
[1762655268900,5.7139,157.57,157.52,3.14]
[1762655269204,5.02649845,157.61,157.52,3.14]
[1762655269403,5.7129,157.59,157.52,3.14]
[1762655269806,0.04237334,157.57,157.55,3.14]
[1762655275009,5.75617334,157.57,157.55,3.14]
[1762655276506,5.714,157.56,157.54,0.04835274]
[1762655277008,5.714,157.56,157.54,3.18835274]
[1762655279203,5.04520334,157.55,157.54,3.18835274]
[1762655281311,5.04520334,157.55,157.54,0.04835274]
[1762655281813,5.04520334,157.55,157.54,3.07835274]
[1762655282206,5.04520334,157.55,157.54,0.04835274]
[1762655285416,12.94359171,157.55,157.54,0.04835274]
[1762655286417,12.94359171,157.55,157.47,5.717]
[1762655286418,5.7147,157.54,157.47,5.717]
[1762655286718,5.92174631,157.5,157.47,5.717]
[1762655286918,5.04520334,157.49,157.47,5.717]
[1762655287118,5.04520334,157.48,157.47,5.717]
[1762655287319,0.04671299,157.49,157.47,5.717]
[1762655287616,5.92174631,157.56,157.46,0.0446462]
[1762655287814,5.92174631,157.56,157.45,2.65855217]
[1762655288016,5.7147,157.54,157.44,58.08338422]
[1762655288422,5.92174631,157.55,157.45,3.03]
[1762655288719,5.75876058,157.52,157.49,3.03]
[1762655290616,5.75876058,157.52,157.48,0.04371334]
[1762655290617,0.04326058,157.52,157.48,0.04371334]
[1762655290816,10.55421391,157.49,157.42,3.03]
[1762655291014,5.717,157.48,157.42,3.03]
[1762655291217,2.65855217,157.5,157.42,3.03]
[1762655291218,8.58966981,157.5,157.42,3.03]
[1762655291418,2.65855217,157.5,157.42,3.03]
[1762655291618,5.717,157.48,157.42,3.03]
[1762655291819,0.04745064,157.47,157.44,3.03]
[1762655292325,0.04745064,157.47,157.43,0.04043874]
[1762655292326,5.76485064,157.47,157.43,3.07043874]
[1762655292729,5.7178,157.46,157.43,0.04043874]
[1762655295626,5.7182,157.45,157.43,0.04043874]
[1762655296621,0.04745064,157.47,157.43,3.07043874]
[1762655298630,5.76485064,157.47,157.43,3.07043874]
[1762655301722,0.04745064,157.47,157.43,3.07043874]
[1762655302934,0.04745064,157.47,157.43,8.78893874]
[1762655303335,0.04745064,157.47,157.44,3.03]
[1762655313549,0.04745064,157.47,157.44,8.7482]
[1762655313749,0.04745064,157.47,157.45,2.97]
[1762655318756,0.04745064,157.47,157.46,2.97]
[1762655319750,5.716,157.51,157.46,8.6875]
[1762655319958,5.716,157.51,157.47,2.97]
[1762655320852,5.75841493,157.51,157.47,3.01400168]
[1762655333266,1.74587753,157.51,157.47,0.04400168]
[1762655333465,7.4200626,157.49,157.47,0.04400168]
[1762655340568,5.7184,157.44,157.39,3.02]
[1762655341368,5.7184,157.44,157.38,7.90709141]
[1762655341369,0.04709162,157.43,157.41,3.02]
[1762655344173,0.04709162,157.43,157.4,0.0475587]
[1762655344174,0.04709162,157.43,157.4,2.9975587]
[1762655344367,5.76589162,157.43,157.4,2.9975587]
[1762655344566,0.04709162,157.43,157.4,2.9975587]
[1762655345370,5.7191,157.42,157.4,2.9975587]
[1762655346370,5.7191,157.42,157.4,0.0475587]
[1762655348776,7.4225626,157.42,157.4,0.0475587]
[1762655349281,5.7208,157.38,157.34,2.95]
[1762655350373,5.7633924,157.38,157.34,2.9930923]
[1762655352269,0.0025924,157.38,157.37,2.95]
[1762655352469,1.7034626,157.47,157.37,2.95]
[1762655352678,1.7034626,157.49,157.4,2.95]
[1762655353476,0.04060037,157.46,157.43,0.04586527]
[1762655354081,5.7183,157.45,157.43,0.04586527]
[1762655355777,0.04060037,157.46,157.43,2.99586527]
[1762655356375,0.04060037,157.46,157.43,10.41792787]
[1762655356571,0.04060037,157.46,157.44,2.95]
[1762655356769,0.04060037,157.46,157.44,8.6683]
[1762655356983,5.7161,157.51,157.46,2.95]
[1762655357872,0.0469646,157.5,157.47,0.04333514]
[1762655358078,0.0469646,157.5,157.47,2.99333514]
[1762655359186,5.7632646,157.5,157.47,2.99333514]
[1762655362878,0.0469646,157.5,157.47,2.99333514]
[1762655365987,5.7631646,157.5,157.47,2.99333514]
[1762655366187,0.0469646,157.5,157.47,0.04333514]
[1762655366586,0.0469646,157.5,157.47,2.99333514]
[1762655367090,5.7166,157.49,157.47,2.99333514]
[1762655370492,0.0469646,157.5,157.47,2.99333514]
[1762655372296,5.7631646,157.5,157.47,2.99333514]
[1762655376099,0.0469646,157.5,157.47,2.99333514]
[1762655379392,5.7631646,157.5,157.47,2.99333514]
[1762655379901,107.9246,157.49,157.34,11.82827576]
[1762655380199,107.9246,157.49,157.31,14.05471139]
[1762655380200,2.66108287,157.35,157.31,14.05471139]
[1762655380393,2.66108287,157.35,157.28,2.56]
[1762655380596,2.66108287,157.35,157.29,4.43491139]
[1762655380903,5.723,157.31,157.3,0.04863048]
[1762655387502,5.7248,157.27,157.22,3.14]
[1762655387704,5.7248,157.27,157.23,10.13491139]
[1762655387900,5.7248,157.27,157.23,3.14]
[1762655388095,5.7248,157.27,157.24,6.99491139]
[1762655388295,5.7248,157.27,157.24,7.04374235]
[1762655388296,5.77191394,157.27,157.24,7.04374235]
[1762655388505,5.77191394,157.27,157.25,6.99491139]
[1762655389003,5.77191394,157.27,157.26,2.56]
[1762655389193,0.04711394,157.27,157.26,2.56]
[1762655393208,0.04711394,157.27,157.26,10.13491139]
[1762655396217,0.04711394,157.27,157.26,6.99491139]
[1762655396510,0.04711394,157.27,157.26,2.56]
[1762655398112,0.04711394,157.27,157.26,5.7]
[1762655400419,0.04711394,157.27,157.26,2.56]
[1762655401316,0.04711394,157.27,157.24,0.04883096]
[1762655401317,5.7249,157.26,157.24,0.04883096]
[1762655401619,5.7249,157.26,157.24,4.48374235]
[1762655401920,8.38598287,157.26,157.24,0.04883096]
[1762655404516,5.727,157.21,157.19,3.07]
[1762655404713,5.727,157.21,157.2,4.43491139]
[1762655405114,5.7276,157.19,157.16,3.07]
[1762655405624,5.77540966,157.19,157.18,3.07]
[1762655406010,5.77540966,157.19,157.18,4.43491139]
[1762655406207,0.04780966,157.19,157.18,7.50491139]
[1762655412317,0.04780966,157.19,157.18,3.07]
[1762655412623,0.04780966,157.19,157.18,7.50491139]
[1762655415023,0.04780966,157.19,157.18,3.07]
[1762655415222,5.7278,157.18,157.17,3.07]
[1762655415522,5.7278,157.18,157.17,7.50491139]
[1762655416824,5.7278,157.18,157.17,3.07]
[1762655417323,5.7278,157.18,157.16,3.11482471]
[1762655417525,5.7278,157.18,157.17,4.43491139]
[1762655417824,5.7278,157.18,157.16,3.11482471]
[1762655418026,5.7278,157.18,157.17,4.43491139]
[1762655418229,5.7278,157.18,157.17,1.139e-05]
[1762655418427,5.7278,157.18,157.16,3.11482471]
[1762655419531,5.7278,157.18,157.16,0.04482471]
[1762655420029,2.66108287,157.17,157.16,0.04482471]
[1762655421131,7.42612745,157.17,157.1,3.07]
[1762655421426,5.7303,157.11,157.1,3.07]
[1762655424632,5.7303,157.11,157.09,3.11786938]
[1762655425824,4.78973684,157.1,157.09,3.11786938]
[1762655426527,4.78973684,157.1,157.09,0.04786938]
[1762655426921,9.40362198,157.1,157.09,0.04786938]
[1762655427123,4.78973684,157.1,157.09,0.04786938]
[1762655428035,4.78973684,157.1,157.09,3.11786938]
[1762655428333,0.04513051,157.12,157.09,3.11786938]
[1762655428535,4.79795954,157.11,157.09,3.11786938]
[1762655428734,4.79795954,157.1,157.09,3.11786938]
[1762655430834,5.7304,157.11,157.09,3.11786938]
[1762655432136,0.04513051,157.12,157.09,3.11786938]
[1762655436739,5.7304,157.11,157.09,3.11786938]
[1762655440645,5.7304,157.11,157.09,0.04786938]
[1762655440941,11.4538,157.21,157.1,3.2]
[1762655441143,1.71206442,157.17,157.1,3.2]
[1762655441334,5.7293,157.14,157.1,3.2]
[1762655441850,5.77553817,157.14,157.1,3.24573541]
[1762655442542,5.7297,157.13,157.1,3.24573541]
[1762655443335,5.7301,157.12,157.1,3.24573541]
[1762655450245,1.71206442,157.11,157.1,0.04573541]
[1762655450660,1.71206442,157.11,157.03,3.24]
[1762655450856,1.71206442,157.08,157.03,3.24]
[1762655451659,5.7323,157.06,157.03,3.24]
[1762655451953,5.7323,157.06,157.04,3.28124304]
[1762655455570,0.04145693,157.07,157.04,3.28124304]
[1762655456969,5.77335693,157.07,157.04,3.28124304]
[1762655460568,0.04145693,157.07,157.04,3.28124304]
[1762655465376,1.71206442,157.14,157.05,1.71206442]
[1762655465674,1.71206442,157.14,157.07,5.7317]
[1762655465981,1.71206442,157.14,157.08,3.02]
[1762655466181,1.71206442,157.12,157.08,3.02]
[1762655466375,5.7304,157.11,157.09,0.04488424]
[1762655467281,5.7304,157.11,157.09,3.06488424]
[1762655467580,1.71206442,157.12,157.09,3.06488424]
[1762655468080,1.71206442,157.1,157.09,0.04488424]
[1762655468577,6.53032186,157.1,157.09,0.04488424]
[1762655469974,1.71206442,157.12,157.09,3.06488424]
[1762655471078,5.77000984,157.13,157.09,3.06488424]
[1762655471677,0.04020984,157.13,157.09,3.06488424]
[1762655472182,5.76990984,157.13,157.09,3.06488424]
[1762655472869,1.71206442,157.12,157.09,0.04488424]
[1762655473375,5.7304,157.11,157.09,0.04488424]
[1762655473566,1.71206442,157.1,157.09,0.04488424]
[1762655475074,5.7304,157.11,157.09,0.04488424]
[1762655476782,1.71206442,157.1,157.09,0.04488424]
[1762655476983,5.7304,157.11,157.09,0.04488424]
[1762655481579,6.52727474,157.1,157.09,0.04488424]
[1762655483579,11.00052434,157.1,157.09,0.04488424]
[1762655484883,5.7332,157.04,157.02,3.02]
[1762655485083,5.7332,157.04,156.93,195.69258113]
[1762655485283,4.81521032,157.08,156.97,3.02]
[1762655485582,1.71206442,157.05,156.97,3.02]
[1762655485986,5.774227,157.03,157.0,3.02]
[1762655486288,1.75289142,157.03,156.99,0.04516372]
[1762655486487,5.7343,157.01,156.99,0.04516372]
[1762655486991,7.44636442,157.01,156.99,0.04516372]
[1762655489982,5.7361,156.96,156.91,3.02]
[1762655490286,1.71206442,156.96,156.91,3.02]
[1762655490788,1.71206442,156.94,156.91,3.02]
[1762655491178,1.71206442,156.94,156.91,3.06047727]
[1762655491383,5.7371,156.93,156.91,0.04047727]
[1762655494889,1.71206442,156.92,156.91,0.04047727]
[1762655499492,1.71206442,156.92,156.85,3.06]
[1762655499696,1.71206442,156.89,156.85,3.06]
[1762655500097,5.7392,156.87,156.85,3.06]
[1762655501095,5.7392,156.87,156.84,3.10593741]
[1762655501493,5.7396,156.86,156.84,3.10593741]
[1762655501891,0.0450373,156.88,156.84,3.10593741]
[1762655501892,0.0450373,156.88,156.84,4.38593741]
[1762655502097,0.0450373,156.88,156.85,3.06]
[1762655503505,5.7374,156.92,156.87,3.06]
[1762655503799,66.78288219,156.96,156.87,3.06]
[1762655504700,5.78371788,156.93,156.9,3.0270208]
[1762655504900,0.04661788,156.93,156.9,3.0270208]
[1762655506404,5.78371788,156.93,156.9,3.0270208]
[1762655507600,5.7374,156.92,156.9,3.0270208]
[1762655507810,5.7374,156.92,156.9,0.0470208]
[1762655511193,0.04661788,156.93,156.9,3.0270208]
[1762655511703,2.72950007,156.93,156.9,0.0470208]
[1762655512206,5.7374,156.92,156.9,0.0470208]
[1762655516106,2.68288219,156.91,156.9,0.0470208]
[1762655521309,5.7374,156.92,156.9,0.0470208]
[1762655523417,66.78950007,156.93,156.9,3.2970208]
[1762655523605,64.10661788,156.93,156.9,3.2970208]
[1762655524109,5.7374,156.92,156.9,3.2970208]
[1762655525118,2.72950007,156.93,156.9,3.2970208]
[1762655525311,0.04661788,156.93,156.9,3.2970208]
[1762655526616,5.7375,156.92,156.9,3.2970208]
[1762655529012,5.7375,156.92,156.9,0.0470208]
[1762655529217,4.80033686,156.91,156.9,0.0470208]
[1762655530812,8.42038219,156.92,156.9,0.0470208]
[1762655532821,4.81461282,156.91,156.9,0.0470208]
[1762655533622,9.285306,156.91,156.9,0.0470208]
[1762655536022,9.285306,156.91,156.85,3.25]
[1762655536222,2.68288219,156.89,156.85,3.25]
[1762655536726,5.7392,156.87,156.85,3.25]
[1762655541722,5.7396,156.86,156.84,3.2976238]
[1762655544431,5.7396,156.86,156.84,0.0476238]
[1762655547928,5.86712398,156.97,156.87,3.25]
[1762655548225,7.48198054,156.96,156.87,3.25]
[1762655548528,5.7377,156.91,156.87,3.25]
[1762655548730,2.68288219,156.93,156.87,3.25]
[1762655548930,4.83831804,156.92,156.88,0.04121993]
[1762655549129,5.7381,156.9,156.88,0.04121993]
[1762655549427,4.79665639,156.89,156.88,0.04121993]
[1762655549926,8.42098219,156.9,156.88,0.04121993]
[1762655550425,5.7381,156.9,156.88,0.04121993]
[1762655550728,8.42098219,156.9,156.88,0.04121993]
[1762655552841,5.7381,156.9,156.88,0.04121993]
[1762655554639,8.46307404,156.92,156.88,3.13121993]
[1762655554834,0.04269185,156.92,156.88,3.13121993]
[1762655555940,5.78009185,156.92,156.88,3.13121993]
[1762655558441,5.7378,156.91,156.88,3.13121993]
[1762655558637,0.04269185,156.92,156.88,0.04121993]
[1762655558836,0.04269185,156.92,156.88,3.13121993]
[1762655559038,5.7381,156.9,156.88,3.13121993]
[1762655560732,7.49663776,156.92,156.88,3.13121993]
[1762655560933,1.75903776,156.92,156.88,3.13121993]
[1762655561742,1.75903776,156.92,156.88,0.04121993]
[1762655561949,1.71634591,156.9,156.88,0.04121993]
[1762655562548,1.71634591,156.9,156.88,3.13121993]
[1762655563147,5.7379,156.91,156.88,3.13121993]
[1762655563647,1.71634591,156.91,156.88,3.13121993]